Cogmind - Beta 15 @@@ ROGUE MODE // 2025.10.10 @ 23:12:25 Player: Oertel Result: Destroyed by G-47 Trooper with Particle Gun Performance ------------- Evolutions (0) 0 Regions Visited (2) 400 Robots Destroyed (29) 145 Value Destroyed (720) 720 Prototype IDs (0) 0 Alien Tech Used (0) 0 Bonus (0) 0 TOTAL SCORE: 1265 Bonus ------- None Cogmind --------- Core Integrity 0/250 Matter 289/300 Energy 250/250 System Corruption 0% Temperature Cool (9) Movement Walking (190) Ox1 Location -10/Mines Parts ------- > --- POWER (1) -------- Ion Engine > --- PROPULSION (2) --- Aluminum Leg Aluminum Leg > --- UTILITY (2) ------ Large Storage Unit Targeting Computer > --- WEAPON (2) ------- Light Assault Rifle > --- INVENTORY (15) --- Ion Engine Ion Engine Aluminum Leg Small Matter Pod (50) Medium Matter Pod (100) Transport Network Coupler Hacking Suite Assault Rifle Grenade Launcher Grenade Launcher Grenade Launcher Grenade Launcher Peak State ------------ > --- POWER ------------ Ion Engine > --- PROPULSION ------- Aluminum Leg Aluminum Leg > --- UTILITY ---------- Large Storage Unit Targeting Computer > --- WEAPON ----------- Light Assault Rifle Makeshift Sword > --- INVENTORY -------- Ion Engine Ion Engine Aluminum Leg Aluminum Leg Small Matter Pod Medium Matter Pod Transport Network Coupler Hacking Suite Assault Rifle Light Assault Rifle Grenade Launcher Grenade Launcher Grenade Launcher Grenade Launcher [Rating: 11] Favorites ----------- Power Light Ion Engine Engine Light Ion Engine Propulsion Aluminum Leg Leg Aluminum Leg Utility Targeting Computer Device Heat Sink Storage Large Storage Unit Processor Targeting Computer Weapon Assault Rifle Ballistic Gun Assault Rifle Launcher Grenade Launcher Slashing Weapon Makeshift Sword Build | -11 -10 -10 ------- Run | Yrd Mat Min Slots Evolved . | . . . Power . | . . . Propulsion . | . . . Utility . | . . . Weapon . | . . . Parts Attached 20 | 6 6 8 Power 2 | 1 . 1 Engine 2 | 1 . 1 Core . | . . . Reactor . | . . . Propulsion 6 | 2 . 4 Treads . | . . . Leg 6 | 2 . 4 Wheel . | . . . Hover . | . . . Flight . | . . . Utility 4 | . 4 . Device 1 | . 1 . Storage 2 | . 2 . Processor 1 | . 1 . Hackware . | . . . Protection . | . . . Artifact . | . . . Weapon 8 | 3 2 3 Energy Gun . | . . . Energy Cannon . | . . . Ballistic Gun 4 | 3 . 1 Ballistic Cannon . | . . . Launcher 3 | . 2 1 Special Weapon . | . . . Impact Weapon . | . . . Slashing Weapon 1 | . . 1 Piercing Weapon . | . . . Special Melee Weapon . | . . . Unidentified Prototypes . | . . . Parts Lost 8 | . 1 7 Power 1 | . 1 . Propulsion 4 | . . 4 Utility . | . . . Weapon 3 | . . 3 Highest Loss Streak 4 | . 1 4 To Critical Strikes . | . . . Average Backups 11 | 3 8 14 Power 1 | . 1 2 Propulsion 2 | 2 2 2 Utility 2 | . 1 4 Weapon 4 | . 3 5 Tool/Special . | . . . Unused Backups 16 | . 5 11 Power 3 | . . 3 Propulsion 6 | . 2 4 Utility 3 | . . 3 Weapon 4 | . 3 1 Tool/Special . | . . . Average Slot Usage (%) 92 | . 90 94 Engine 11 | . 11 11 Leg 26 | . 27 25 Storage 13 | . 12 14 Processor 10 | . 7 14 Ballistic Gun 26 | . 26 25 Launcher 1 | . 1 1 Peak Build Rating 11 | 5 8 11 Average Rating 7 | 3 7 7 On Entrance 4 | . 5 7 Naked Turns . | . . . Heaviest Build 30 | 7 27 30 Greatest Support 20 | 20 20 20 Greatest Overweight (x) 2 | . 1 2 Average Overweight (x) . | . . 1 Largest Inventory Capacity 15 | 5 15 15 Average Capacity 11 | 5 9 15 Most Carried 15 | 5 15 15 Average Carried 11 | 3 8 14 Final Capacity 15 | 5 15 15 Final Carried 15 | 5 15 12 Class Distribution -------------------- 100% | Mutant Dominant Class ---------------- Mutant | -10/Materials Mutant | -10/Mines Resources | -11 -10 -10 ----------- Run | Yrd Mat Min Matter Collected 1027 | 227 401 399 Remotely . | . . . Salvage Created 980 | . 489 491 Parts 60 | . 36 24 Haulers Intercepted 1 | . 1 . Recyclers Shooed 3 | . 3 . Parts Field Recycled . | . . . Retrieved Matter . | . . . Parts Self-Destructed . | . . . Prevented . | . . . Kills | -11 -10 -10 ------- Run | Yrd Mat Min Combat Hostiles Destroyed 21 | . 9 12 Melee 1 | . . 1 Guns 19 | . 8 11 AOE 1 | . 1 . Classes Destroyed 9 | . 7 2 Worker 2 | . 2 . Builder 2 | . . 2 Hauler 1 | . 1 . Recycler 2 | . 2 . Operator 1 | . 1 . Watcher 2 | . 2 . Swarmer 3 | . 3 . Grunt 16 | . 6 10 Assembled 2 | . . 2 Best Kill Streak 4 | . 4 3 Combat Bots Only 3 | . 3 2 Max Kills in Single Turn 2 | . 1 2 Gunslinging . | . . . Exploded 1 | . 1 . Melee 1 | . . 1 Uniques/NPCs Destroyed . | . . . Combat | -11 -10 -10 -------- Run | Yrd Mat Min Hostile Shots Fired 147 | . 40 107 Missed 50 | . 17 33 Hits 97 | . 23 74 Projectile 97 | . 23 74 Damage Taken 1223 | . 299 924 Core 252 | . 79 173 Absorbed by Shields . | . . . Regen/Repaired (Parts) 44 | . 44 . Core Remaining (%) 100 | 100 . . Volleys Fired 77 | . 40 37 Largest 2 | . 2 2 Hottest 50 | . 50 40 Shots Fired 147 | . 79 68 Gun 140 | . 74 66 Cannon . | . . . Launcher 7 | . 5 2 Special . | . . . Kinetic 140 | . 74 66 Thermal . | . . . Explosive 7 | . 5 2 Electromagnetic . | . . . Robot Hit Streak 15 | . 8 15 Robot Miss Streak 3 | . 3 3 Penetration Max . | . . . Secondary Targets 2 | . 1 1 Max Gunslinging Chain 1 | . 1 1 Shots Hit Robots 98 | . 46 52 Core Hits 56 | . 29 27 Critical Kills . | . . . Critical Parts Destroyed 1 | . 1 . Critical Strikes 1 | . 1 . Destroy 1 | . 1 . Melee Attacks 6 | . . 6 Impact . | . . . Slashing 6 | . . 6 Piercing . | . . . Sneak Attacks . | . . . Combat Hostiles . | . . . Follow-up Attacks . | . . . Damage Inflicted 1634 | . 899 735 Guns 1137 | . 576 561 Cannons . | . . . Explosions 319 | . 319 . Melee 174 | . . 174 Ramming 4 | . 4 . Kinetic 1137 | . 576 561 Thermal . | . . . Explosive 319 | . 319 . Electromagnetic . | . . . Impact . | . . . Slashing 174 | . . 174 Piercing . | . . . Highest Corruption . | . . . Average Corruption . | . . . Corruption Purged . | . . . Corruption Blocked . | . . . Overload Shots . | . . . Overflow Damage 4 | . . 4 Projectiles . | . . . Explosions . | . . . Melee 4 | . . 4 Knockbacks . | . . . Impact . | . . . Kinetic . | . . . Secondary . | . . . Self-Inflicted Damage 47 | . 32 15 Shots 3 | . 1 2 Rammed . | . . . Targets Rammed 6 | . 6 . Kicked 6 | . 6 . Crushed . | . . . Highest Temperature 34 | . 9 34 Average Temperature 9 | . 3 14 Received Heat Transfer 652 | . 117 535 Siege Activations . | . . . Martial Activations . | . . . Shielding Activations . | . . . Robots Disrupted . | . . . Combat Hostiles . | . . . Robots Corrupted . | . . . Combat Hostiles . | . . . Parts Fried . | . . . Impact Corruptions . | . . . Robots Melted . | . . . Combat Hostiles . | . . . Parts Melted . | . . . Heat Transferred . | . . . Parts Sabotaged . | . . . Parts Stolen . | . . . Parts Stripped . | . . . Power Chain Reactions . | . . . Alert | -11 -10 -10 ------- Run | Yrd Mat Min Maximum Alert Level . | . . . Low Security (%) 100 | 100 100 100 Level 1 . | . . . Level 2 . | . . . Level 3 . | . . . Level 4 . | . . . Level 5 . | . . . High Security . | . . . Max Security . | . . . Peak Influence 93 | . 93 55 Initial 15 | . . 15 Average 27 | . 43 11 Influence Increases 661 | . 371 290 Destroy 0b10 Robot/C 380 | . 180 200 Destroy 0b10 Robot/NC 50 | . 40 10 Destroy Leader 66 | . 46 20 Successful Hack 10 | . 10 . Disable Machine 30 | . 30 . Destroy Structure 20 | . 20 . Lose Combat Pursuer 105 | . 45 60 Influence Decreases 640 | . 332 308 Entered New Map 24 | . . 24 Time Decay 556 | . 322 234 Lost Part 60 | . 10 50 Squads Dispatched 1 | . 1 . Investigation 1 | . 1 . Extermination . | . . . Reinforcement . | . . . Assault . | . . . Garrison . | . . . Intercept . | . . . Searches Triggered . | . . . Construction Impeded . | . . . Haulers Reinforced . | . . . Active Scanning Responses . | . . . Cargo Convoy Interrupts . | . . . Stealth | -11 -10 -10 --------- Run | Yrd Mat Min Distress Signals 3 | . 2 1 Communications Jammed . | . . . Distress Signals . | . . . Times Spotted 32 | . 16 16 Peak Tracking Total 4 | . 4 4 Tactical Retreats 6 | . 2 4 Traps | -11 -10 -10 ------- Run | Yrd Mat Min Traps Triggered . | . . . Indirectly . | . . . Trap Hack Attempts . | . . . Triggered . | . . . Disarmed . | . . . Reprogrammed . | . . . Reused . | . . . Traps Extracted . | . . . Installed . | . . . Triggered . | . . . Machines | -11 -10 -10 ---------- Run | Yrd Mat Min Machines Disabled 2 | . 2 . Max in Single Turn 2 | . 2 . Machines Repaired . | . . . Machines Dismantled . | . . . Machines Sabotaged . | . . . Overloaded Fab Kills . | . . . Hacking | -11 -10 -10 --------- Run | Yrd Mat Min Machines Accessed 5 | . 4 1 Terminals 4 | . 3 1 Fabricators . | . . . Repair Stations 1 | . 1 . Recycling Units . | . . . Scanalyzers . | . . . Garrison Access . | . . . Total Hacks 12 | . 11 1 Successful 3 | . 3 . Failed 9 | . 8 1 Catastrophic 4 | . 4 . Database Lockouts . | . . . Manual 8 | . 7 1 Terminals 9 | . 8 1 Fabricators . | . . . Repair Stations 3 | . 3 . Recycling Units . | . . . Scanalyzers . | . . . Garrison Access . | . . . Terminal Hacks 1 | . 1 . Part Schematic 1 | . 1 . Fabricator Hacks . | . . . Repair Station Hacks 2 | . 2 . Scan Component 1 | . 1 . Repair 1 | . 1 . Recycling Unit Hacks . | . . . Scanalyzer . | . . . Garrison Access Hacks . | . . . Unauthorized Hacks . | . . . Terminals . | . . . Fabricators . | . . . Repair Stations . | . . . Recycling Units . | . . . Scanalyzers . | . . . Garrison Access . | . . . Data Cores Recovered . | . . . Used . | . . . Hacking Detections 4 | . 4 . Full Trace Events 2 | . 2 . Feedback Events . | . . . Feedback Blocked . | . . . Robot Schematics Acquired . | . . . Robots Built . | . . . Authchips . | . . . Time . | . . . Total Robot Build Rating . | . . . Part Schematics Acquired 1 | . 1 . Parts Built . | . . . Authchips . | . . . Time . | . . . Total Part Build Rating . | . . . Parts Repaired 1 | . 1 . Time 26 | . 26 . Parts Recycled . | . . . Recycled Matter . | . . . Retrieved Matter . | . . . Retrieved Components . | . . . Parts Scanalyzed . | . . . Part Schematics Acquired . | . . . Parts Damaged . | . . . Bothacking | -11 -10 -10 ------------ Run | Yrd Mat Min Used RIF Installer . | . . . Robots Hacked . | . . . Non-combat . | . . . Combat . | . . . Robot Hacks Applied . | . . . Relay Couplers Released . | . . . Fabnet Peak Effective % . | . . . Robots Rewired . | . . . Allies Hacked . | . . . Hacks Repelled . | . . . Allies | -11 -10 -10 -------- Run | Yrd Mat Min Total Allies . | . . . Largest Group . | . . . Highest-Rated Group . | . . . Highest-Rated Ally . | . . . Total Orders . | . . . Ally Attacks . | . . . Total Damage . | . . . Kills . | . . . Allies Corrupted . | . . . Allies Melted . | . . . Intel | -11 -10 -10 ------- Run | Yrd Mat Min Active Infowar (turns) . | . . . Robot Analysis Total . | . . . Derelict Logs Recovered 1 | . . 1 Drone Launches . | . . . Drone Recoveries . | . . . Exploration | -11 -10 -10 ------------- Run | Yrd Mat Min Turns Passed 1900 | 56 956 888 Spaces Moved 985 | 40 569 376 Core 10 | 10 . . Treads . | . . . Legs 975 | 30 569 376 Wheels . | . . . Hover . | . . . Flight . | . . . Fastest Speed 50 | 50 120 190 Average Speed 154 | 102 130 198 Slowest Speed 260 | 120 190 260 Overloaded Moves . | . . . Propulsion Burnouts . | . . . Robots Hopped . | . . . Potential Cave-ins . | . . . Cave-ins Triggered . | . . . Exploration Rate (%) 44 | 3 60 69 Regions Visited 2 Branch Regions 1 Pre-discovered Areas . | . . . Known Exits Taken . | . . . Unknown Exits Taken 2 | 1 1 . Scrap Searched 1 | . . 1 Spaces Dug . | . . . Terrain Destroyed 27 | . 27 . Melee . | . . . Projectile . | . . . AOE 27 | . 27 . Terrain Rammed . | . . . Walls Destroyed . | . . . Machines Disabled . | . . . Actions | -11 -10 -10 --------- Run | Yrd Mat Min Total 1210 | 53 705 452 Wait 70 | . 59 11 Move 983 | 39 568 376 Hop . | . . . Pick Up 31 | 8 17 6 Fast Attach 6 | 2 2 2 Attach 10 | 3 2 5 Detach . | . . . Swap 10 | 1 4 5 Drop 11 | . 7 4 Fire 77 | . 40 37 Melee 6 | . . 6 Ram . | . . . Kick 6 | . 6 . Crush . | . . . Escape Stasis . | . . . Rewire . | . . . Trap . | . . . Miscellaneous . | . . . Route ------- -11/Scrapyard -10/Materials (discovered 2 exits: [*Mat] / *Min) -10/Mines History --------- Turn | Location | Event 7 | -11/Scrapyard | Discovered new exit (range 14) 57 | -11/Scrapyard | Entered Materials 275 | -10/Materials | Discovered new exit (range 8) 310 | -10/Materials | Build established: Mutant 464 | -10/Materials | Discovered new exit (range 13) 627 | -10/Materials | Repaired Aluminum Leg 1013 | -10/Materials | Entered Mines 1039 | -10/Mines | Met a Derelict bent on vengeance 1129 | -10/Mines | Learned Materials terminal intel 1426 | -10/Mines | Excavation squad dispatched 1426 | -10/Mines | A large section of the Mines collapsed 1534 | -10/Mines | Core integrity fell below 50% 1676 | -10/Mines | Excavation squad dispatched 1801 | -10/Mines | A weapon hastily lodged in a ceiling crevice suddenly fell to the ground 1858 | -10/Mines | Core integrity fell below 20% 1901 | -10/Mines | Destroyed by G-47 Trooper with Particle Gun Last Messages --------------- 01852_ Seismic Survey Station disabled. 01852_ Aluminum Leg destroyed. 01853_ G-34 Mercenary destroyed. 01856_ Acquired 2 matter. 01860_ K-01 Serf collects debris. 01865_ Aluminum Leg destroyed. 01868_ K-01 Serf collects debris. 01873_ Mak. Sword destroyed. 01876_ K-01 Serf collects debris. 01882_ G-34 Mercenary destroyed. 01882_ Switching to secondary target: G-47 Trooper. 01884_ K-01 Serf collects debris. 01885_ Acquired 18 matter. 01887_ K-01 Serf collects debris. 01889_ T-07 Excavator destroyed. 01890_ Acquired Aluminum Leg. 01891_ K-01 Serf collects debris. 01893_ Lgt. Assault Rifle destroyed. 01895_ K-01 Serf collects debris. Map ----- +----------------------------------------------------+ | | | | | | | | | | | | | | | | | | | | | | | | | | | | | ?????????????????????????????????????????????????? | | ?????????????????????????????????????????????????? | | ???????????????#######???????????????????????????? | | ??????????????## ############????????????????? | | ?????????????## [ !% ####?????????????? | | ????????????## #g* "" """ !#????????????? | | ????????##### ## """ """ #?# #????????????? | | ???????## ###### ="" """ #?# #????????????? | | ??????## ##????# =%! % #?# #????????????? | | ??????# #?????# ! % #?# #######??????? | | ??????# ##????# [%!k #?# #??????? | | ??????## ##???# @ #?# ##### #??????? | | ??????## ##??###### #####?# ##### ###????? | | ??????# #???????# #?????# ## #????? | | ?????# "######## ####??# ## #????? | | ?? % #??# ## """ #????? | | ####=####### #### ## """ #????? | | ####### ##########??# ##????# ## ## """ #????? | | ??????# #????????#### #????### ## ##=!%*| #????? | | ??????# #???????## #??????# % #### ####????? | | ??????% #??????## ### ##?????#### #??# #???????? | | ????? ???????# ## ###???????# ####=#???????? | | ???? ####??###### # ##??????# *=#???????? | | ???????????# # ##??????######!#???????? | | ???????????# ## ###??????????# #???????? | | ???????????# ####### ##?????????# #???????? | | ???????????????????# ##????????# #???????? | | ???????????????????# ########## #???????? | | ??????????????????## ## #???????? | | ???????????????#### % ######## ## #???????? | | ??????????????## ###??????# #???????? | | ??????????????# ##????????#### #???????? | | ?? ?????????# #????????????# ??????? | | ?? ?????????## ## #???????????? #????? | | ?? #?????????### #### #???????????? #???? | | ? ##??????????# #??## #??????????? ##???? | +----------------------------------------------------+ Best States ------------- Heat Dissipation 35 Energy Generation 10 Energy Capacity 250 Matter Stores 300 Matter Capacity 300 Sight Range 16 Terrain Scan Density 10 Evasion (%) 55 Targeting Accuracy 5 Item Schematics ----------------- Signal Interpreter | -10/Materials | Hacked Robot Schematics ------------------ None Fabricated ------------ Nothing Repaired ---------- Aluminum Leg | 51% | -10/Materials Alien Tech Used ----------------- None Achievements -------------- None Challenges ------------ None Game ------ Seed GravmagTargetingExtrapolator Manual? 0 Play Time 00:23:20 Cumulative 18.1 hours Start 2025.10.10 @ 22:48:07 End 2025.10.10 @ 23:12:25 Sessions 1 Manual Loads 0 Difficulty Rogue Special Mode None Game No. 13 Rogue 13 Adventurer 0 Explorer 0 Win Type - Total 0 Types 0/0/0/0/0/0/0/0/0/0 Lore% 10 Gallery% 12 Achievement% 16 Wizard Run 0 Options --------- Layout 1 ASCII 0 Keyboard 0 Movement Mouse Keybinds 0 Fullscreen 2 Font 32/Tamsyn Map View 50x35 Zoom Use 0% Tactical HUD 1 Map Filters NONE Filters NONE Steam 1 RUN: 3a943d2d-244c-48e2-9477-2e751e83772f